bitfinex/quotes_SOLUSD_20240905
["timestamp","ask_amount","ask_price","bid_price","bid_amount"]
[1725557096119,20.0,130.76,130.73,7.6492]
[1725557096314,20.0,130.76,130.74,7.6487]
[1725557096529,20.0,130.76,130.73,26.7722]
[1725557096835,27.6471,130.77,130.73,26.7722]
[1725557097336,7.648,130.76,130.72,7.6498]
[1725557097637,20.0,130.77,130.72,19.1239]
[1725557097638,27.6471,130.77,130.72,19.1239]
[1725557097826,20.0,130.77,130.74,7.6487]
[1725557098138,20.0,130.77,130.74,9.17819137]
[1725557099042,27.647,130.77,130.74,9.17819137]
[1725557100149,7.6476,130.76,130.73,15.9453]
[1725557100347,7.6485,130.75,130.72,19.1239]
[1725557101035,7.6489,130.74,130.71,7.6504]
[1725557101234,7.6484,130.75,130.72,7.6498]
[1725557101538,20.0,130.77,130.73,9.1787168]
[1725557101539,27.6473,130.77,130.73,9.1787168]
[1725557102134,7.6476,130.76,130.73,1.5296168]
[1725557102328,20.0,130.75,130.73,9.1788168]
[1725557102533,27.6472,130.77,130.74,1.52959459]
[1725557102936,9.36400475,130.78,130.74,9.17779459]
[1725557103145,7.647,130.77,130.74,1.52959459]
[1725557103342,8.5055171,130.78,130.74,9.17819459]
[1725557104131,7.647,130.77,130.74,9.17819459]
[1725557105547,7.647,130.77,130.73,26.771]
[1725557107431,7.6476,130.76,130.73,19.1219]
[1725557108551,8.50678765,130.75,130.71,7.65]
[1725557108849,7.6494,130.73,130.7,35.0717]
[1725557109049,0.85848765,130.75,130.7,15.9453]
[1725557109229,7.6495,130.73,130.7,23.5964]
[1725557109629,7.6495,130.73,130.7,15.9453]
[1725557110232,7.65,130.72,130.7,15.9453]
[1725557112440,7.6494,130.73,130.71,1.52999271]
[1725557113771,7.1494,130.73,130.7,17.47522268]
[1725557115043,7.1494,130.73,130.7,15.9453]
[1725557115258,7.1494,130.73,130.71,1.52992602]
[1725557116562,7.1494,130.73,130.7,15.9453]
[1725557117472,0.85848765,130.75,130.69,26.7804]
[1725557117473,7.6499,130.72,130.69,19.1289]
[1725557117668,0.85848765,130.71,130.68,6.4306]
[1725557117840,7.6508,130.71,130.68,6.4306]
[1725557119365,7.6508,130.71,130.68,14.0828]
[1725557119662,7.6508,130.71,130.68,15.6129545]
[1725557119847,7.6508,130.71,130.68,14.0828]
[1725557121068,7.6508,130.71,130.68,15.61295749]
[1725557121255,7.6508,130.71,130.68,14.0828]
[1725557122663,0.85848765,130.73,130.67,15.201]
[1725557122866,0.85848765,130.73,130.65,13.7151]
[1725557122867,7.652,130.69,130.65,13.7151]
[1725557123160,7.6513,130.7,130.66,7.6534]
[1725557123845,0.85848765,130.72,130.67,20.66179671]
[1725557124167,7.6505,130.71,130.68,1.53022627]
[1725557125054,7.6511,130.7,130.68,1.53022627]
[1725557126153,7.6511,130.7,130.67,26.7841]
[1725557126972,7.6511,130.7,130.67,19.1315]
[1725557127753,7.6511,130.7,130.66,7.6532]
[1725557128978,0.85848765,130.69,130.65,25.1962]
[1725557129158,0.85848765,130.69,130.59,50.0]
[1725557129360,1.3326,130.66,130.6,7.6568]
[1725557129574,1.3326,130.66,130.59,7.6575]
[1725557129755,19.99408765,130.65,130.56,9.59263393]
[1725557129955,7.6559,130.62,130.58,7.658]
[1725557130155,7.6547,130.64,130.6,7.6569]
[1725557130372,7.6547,130.64,130.59,1.53113712]
[1725557130373,1.3326,130.66,130.61,20.67145463]
[1725557131160,8.9864,130.66,130.62,7.6555]
[1725557131359,20.0,130.65,130.62,7.6555]
[1725557131566,20.0,130.65,130.63,1.5308264]
[1725557131885,27.6544,130.65,130.61,19.1405]
[1725557133381,27.6544,130.65,130.6,7.6567]
[1725557133382,1.3326,130.66,130.65,7.654]
[1725557133549,1.3326,130.66,130.65,9.18425336]
[1725557133758,1.3326,130.66,130.65,7.654]
[1725557135482,20.0,130.69,130.66,7.6533]
[1725557135783,20.0,130.69,130.66,9.18367686]
[1725557136384,20.0,130.69,130.67,7.6527]
[1725557136680,7.6499,130.72,130.68,9.18233652]
[1725557137053,7.6499,130.72,130.68,7.652]
[1725557137249,7.6499,130.72,130.68,9.18215231]
[1725557137675,8.50908765,130.71,130.67,26.784]
[1725557137883,7.6506,130.71,130.67,26.784]
[1725557138480,7.6506,130.71,130.68,1.53019954]
[1725557138679,7.6506,130.71,130.67,26.784]
[1725557139777,8.50958765,130.7,130.67,19.1314]
[1725557139977,8.51028765,130.69,130.65,7.6536]
[1725557140275,0.85848765,130.68,130.65,7.6536]
[1725557140481,0.85848765,130.68,130.64,19.1352]
[1725557140482,7.6513,130.7,130.66,9.1838701]
[1725557140655,20.0,130.69,130.66,9.1838701]
[1725557141478,28.51068765,130.69,130.65,9.18441168]
[1725557141789,28.51068765,130.69,130.65,7.654]
[1725557142079,28.51068765,130.69,130.65,9.18456631]
[1725557142574,20.0,130.69,130.66,7.6534]
[1725557142777,20.0,130.69,130.67,1.53036804]
[1725557142953,20.0,130.69,130.66,7.6534]
[1725557144190,20.0,130.69,130.66,9.18376564]
[1725557144775,20.0,130.69,130.66,7.6534]
[1725557145562,20.0,130.69,130.66,7.42329333]
[1725557146086,27.6518,130.69,130.65,7.6536]
[1725557146287,27.6518,130.69,130.64,19.1352]
[1725557146288,7.6528,130.68,130.64,26.7896]
[1725557146484,7.6531,130.67,130.62,41.4495]
[1725557147288,7.6531,130.67,130.64,7.6546]
[1725557147461,7.6536,130.66,130.62,41.4495]
[1725557148080,7.6536,130.66,130.63,1.53084302]
[1725557151568,7.6536,130.66,130.63,7.6552]
[1725557153596,7.6529,130.67,130.63,7.6552]
[1725557153972,20.85848765,130.69,130.65,7.6538]
[1725557154296,7.6515,130.7,130.66,7.6533]
[1725557154502,7.6515,130.7,130.67,9.18301432]
[1725557154675,7.6515,130.7,130.68,1.53023277]
[1725557154873,7.6507,130.71,130.68,1.53023277]
[1725557155280,7.6507,130.71,130.68,9.18243277]
[1725557155771,7.6507,130.71,130.68,8.95235588]
[1725557157004,7.6507,130.71,130.67,26.7847]
[1725557157379,21.08856454,130.7,130.64,19.1352]
[1725557157578,7.6517,130.69,130.65,9.1838458]
[1725557158893,20.0,130.7,130.67,7.6523]
[1725557159196,20.0,130.7,130.68,1.53020172]
[1725557160400,22.63822519,130.73,130.7,7.651]
[1725557160401,8.73806454,130.73,130.7,7.651]
[1725557160575,7.6495,130.73,130.71,1.52989411]
[1725557160996,7.6488,130.74,130.71,9.18039411]
[1725557161203,17.68636454,130.77,130.72,7.6499]
[1725557161492,7.6479,130.76,130.73,1.52964535]
[1725557162500,1.08856454,130.77,130.73,9.17884535]
[1725557162501,8.73576454,130.77,130.73,9.17884535]
[1725557162683,7.6472,130.77,130.74,8.30574308]
[1725557162875,8.5055171,130.78,130.74,8.30574308]
[1725557164104,8.5055171,130.78,130.75,1.52943761]
[1725557165106,0.8589171,130.78,130.77,7.647]
[1725557165898,0.8589171,130.78,130.77,9.17586016]
[1725557166279,0.8589171,130.78,130.77,70.66466016]
[1725557166489,0.8589171,130.78,130.77,75.5386]
[1725557166694,0.8589171,130.78,130.77,30.5386]
[1725557168175,0.8589171,130.78,130.74,7.6486]
[1725557168597,0.8589171,130.78,130.73,41.395]
[1725557168598,7.6472,130.77,130.73,19.1229]
[1725557168792,9.59398164,130.78,130.73,26.7722]
[1725557169187,9.59398164,130.78,130.73,19.1229]
[1725557169513,7.6471,130.77,130.73,19.1229]
[1725557169701,7.6471,130.77,130.73,26.7721]
[1725557170077,7.6471,130.77,130.73,19.1229]
[1725557170910,8.73616454,130.76,130.71,7.6504]
[1725557171076,7.6476,130.76,130.71,7.6504]
[1725557171477,7.6482,130.75,130.71,7.6504]
[1725557172384,7.6482,130.75,130.72,1.52975249]
[1725557172999,7.6477,130.76,130.72,1.52975249]
[1725557173600,7.6477,130.76,130.71,7.6504]
[1725557173808,7.6477,130.76,130.72,1.5296687]
[1725557174208,7.6483,130.75,130.72,1.5296687]
[1725557174395,7.6483,130.75,130.71,7.6504]
[1725557175222,1.94748164,130.78,130.71,7.6504]
[1725557175223,7.6477,130.76,130.72,1.52974832]
[1725557177017,1.08856454,130.75,130.71,1.52975207]
[1725557177190,20.0,130.75,130.69,7.6515]
[1725557177402,7.6494,130.73,130.69,7.6515]
[1725557177605,8.73846454,130.72,130.68,7.652]
[1725557177819,7.6499,130.72,130.69,1.5300933]
[1725557178018,7.6494,130.73,130.69,9.1816933]
[1725557178314,7.6489,130.74,130.7,7.651]
[1725557178522,7.6489,130.74,130.71,1.5298298]
[1725557178523,20.0,130.73,130.71,1.5298298]
[1725557179010,20.0,130.73,130.69,19.1288]
[1725557179011,27.6497,130.73,130.69,19.1288]
[1725557179401,27.6497,130.73,130.7,1.52999458]
[1725557181702,27.6497,130.73,130.69,26.7803]
[1725557181919,27.6497,130.73,130.69,19.1288]
[1725557182295,27.6497,130.73,130.69,20.65885472]
[1725557182628,27.6497,130.73,130.69,28.31045472]
[1725557184412,27.6497,130.73,130.69,26.7804]
[1725557184914,20.0,130.73,130.7,1.52987867]
[1725557185126,11.27162761,130.75,130.7,9.18067867]
[1725557185297,27.6488,130.74,130.7,7.6508]
[1725557185496,7.6488,130.74,130.7,7.6508]
[1725557185696,20.0,130.73,130.7,7.6508]
[1725557186023,27.6493,130.73,130.69,26.7803]
[1725557187809,1.08856454,130.72,130.68,1.53014675]
[1725557188108,7.6501,130.72,130.68,1.53014675]
[1725557188416,7.6501,130.72,130.68,9.18224675]
[1725557189098,7.6501,130.72,130.68,7.6521]
[1725557189313,7.6506,130.71,130.67,7.6526]
[1725557189508,7.65,130.72,130.68,9.18230358]
[1725557189715,7.6495,130.73,130.69,7.6515]
[1725557189909,21.08856454,130.74,130.7,1.52992282]
[1725557189910,20.0,130.74,130.7,1.52992282]
[1725557190117,20.0,130.74,130.67,38.2624]
[1725557190421,27.6491,130.74,130.7,26.7781]
[1725557190825,7.6494,130.73,130.7,26.7781]
[1725557191517,7.6494,130.73,130.7,19.1272]
[1725557193309,7.65,130.72,130.68,7.652]
[1725557194826,7.65,130.72,130.69,7.6516]
[1725557195524,7.6517,130.69,130.64,425.5656]
[1725557195823,7.6523,130.68,130.65,7.6539]
[1725557196325,7.6523,130.68,130.64,433.2201]
[1725557198601,7.6523,130.68,130.65,1.53052432]
[1725557198806,7.6523,130.68,130.64,433.2201]
[1725557199513,7.6523,130.68,130.65,1.53052895]
[1725557199718,7.6523,130.68,130.64,433.2201]
[1725557199921,7.6523,130.68,130.64,42.0201]
[1725557200232,7.6523,130.68,130.65,1.53052553]
[1725557200408,7.6523,130.68,130.64,26.7897]
[1725557200605,7.6523,130.68,130.64,28.32037659]
[1725557201627,7.6528,130.67,130.63,7.655]
[1725557203105,16.24506454,130.7,130.61,7.6563]
[1725557203106,7.6541,130.65,130.61,7.6563]
[1725557203496,8.74266454,130.65,130.61,7.6563]
[1725557203702,7.6541,130.65,130.61,7.6563]
[1725557203909,7.6541,130.65,130.61,9.18725637]
[1725557204819,7.6541,130.65,130.61,7.6563]
[1725557205215,7.6547,130.64,130.61,7.6563]
[1725557205605,7.6547,130.64,130.6,34.4838]
[1725557205914,8.74406454,130.63,130.59,7.6573]
[1725557206122,8.74476454,130.62,130.58,26.8031]
[1725557206304,7.6562,130.62,130.58,26.8031]
[1725557207615,7.6571,130.6,130.56,7.659]
[1725557208220,7.6571,130.6,130.57,1.53147139]
[1725557208612,7.657,130.6,130.56,7.6589]
[1725557209713,7.657,130.6,130.57,1.53142767]
[1725557210209,1.08856454,130.62,130.58,7.658]
[1725557210514,1.08856454,130.62,130.58,9.18937562]
[1725557210843,1.08856454,130.63,130.58,9.18937562]
[1725557211012,7.6561,130.62,130.58,9.18937562]
[1725557211217,20.0,130.61,130.58,9.18937562]
[1725557211435,27.6564,130.61,130.58,1.53137562]
[1725557211930,7.6569,130.6,130.57,20.67769286]
[1725557212111,27.6565,130.61,130.58,1.53139286]
[1725557213235,20.0,130.61,130.58,9.18919286]
[1725557213525,20.0,130.61,130.57,26.8049]
[1725557213731,7.6567,130.61,130.57,26.8049]
[1725557215116,8.74556454,130.6,130.57,19.1463]
[1725557215327,7.657,130.6,130.57,19.1463]
[1725557215832,7.657,130.6,130.56,7.6591]
[1725557216135,7.657,130.6,130.55,16.4358]
[1725557216136,21.08856454,130.59,130.55,16.4358]
[1725557216438,20.0,130.59,130.56,7.6591]
[1725557216615,20.0,130.59,130.56,9.19069209]
[1725557216816,20.0,130.59,130.56,28.33889209]
[1725557220139,27.6576,130.59,130.56,20.67979209]
[1725557220341,20.0,130.59,130.56,20.67979209]
[1725557220644,20.0,130.62,130.56,20.67979209]
[1725557220807,1.08856454,130.61,130.56,20.67979209]
[1725557221241,7.6574,130.6,130.56,28.33879209]
[1725557221536,28.74616454,130.59,130.56,19.1482]
[1725557221846,27.6576,130.59,130.56,19.1482]
[1725557222238,27.6576,130.59,130.55,24.0955]
[1725557223018,20.0,130.59,130.56,9.19080809]
[1725557223430,1.08856454,130.62,130.57,19.1464]
[1725557223741,7.6558,130.62,130.58,7.6579]
[1725557224129,28.74486454,130.61,130.57,26.8049]
[1725557224334,27.6563,130.61,130.57,26.8049]
[1725557225226,8.74566454,130.6,130.56,7.6589]
[1725557225421,8.74566454,130.6,130.54,33.0752]
[1725557225422,7.6584,130.58,130.54,33.0752]
[1725557225635,8.74696454,130.58,130.54,33.0752]
[1725557225834,7.6584,130.58,130.54,33.0752]
[1725557226018,1.08856454,130.6,130.54,33.0752]
[1725557226219,7.6593,130.56,130.52,7.6613]
[1725557226438,7.6602,130.55,130.51,26.8164]
[1725557226641,8.74896454,130.54,130.51,19.1544]
[1725557226822,7.6601,130.55,130.51,19.1544]
[1725557227018,1.08856454,130.54,130.51,19.1544]
[1725557227537,8.74906454,130.54,130.51,19.1544]
[1725557227744,7.6605,130.54,130.51,19.1544]
[1725557229236,7.6605,130.54,130.5,7.6622]
[1725557231028,8.74986454,130.53,130.49,9.1955499]
[1725557231234,7.6613,130.53,130.49,9.1955499]
[1725557233946,7.6613,130.53,130.5,7.6628]
[1725557234945,1.08856454,130.57,130.51,1.53240995]
[1725557235145,28.74736454,130.57,130.53,7.6608]
[1725557235332,1.08856454,130.56,130.53,7.6608]
[1725557235530,15.9725,130.6,130.53,7.6608]
[1725557235531,7.6582,130.58,130.54,7.6602]
[1725557235945,1.08856454,130.59,130.55,7.6597]
[1725557237059,1.08856454,130.59,130.55,1.53181132]
[1725557237261,6.3622,130.62,130.55,1.53181132]
[1725557237432,16.53306454,130.63,130.56,19.1479]
[1725557237749,7.6561,130.62,130.58,7.658]
[1725557237950,1.08856454,130.61,130.58,7.658]
[1725557238459,8.74466454,130.62,130.58,7.658]
[1725557238646,20.0,130.61,130.58,7.658]
[1725557238953,4.72817907,130.63,130.6,7.6565]
[1725557239158,1.08856454,130.64,130.6,7.6565]
[1725557239326,8.74206454,130.66,130.61,9.18749811]
[1725557239656,8.74206454,130.66,130.61,9.18739811]
[1725557239855,12.24074724,130.66,130.61,9.18739811]
[1725557240833,20.0,130.65,130.61,9.18739811]
[1725557241252,1.08856454,130.64,130.6,1.53094458]
[1725557241459,7.6552,130.63,130.59,7.6574]
[1725557241760,1.08856454,130.64,130.59,7.6574]
[1725557241957,8.74326454,130.64,130.59,7.6574]
[1725557242462,7.6547,130.64,130.6,7.6569]
[1725557244962,8.74256454,130.65,130.61,9.18746532]
[1725557245159,20.0,130.64,130.61,9.18746532]
[1725557245941,20.0,130.64,130.61,7.6563]
[1725557247852,21.08856454,130.64,130.61,7.6563]
[1725557248065,20.0,130.64,130.62,1.53106967]
[1725557248270,32.24104724,130.66,130.62,7.6556]
[1725557248434,7.6549,130.64,130.59,15.8438]
[1725557248636,1.08856454,130.63,130.59,15.8438]
[1725557248856,23.4986827,130.66,130.59,15.8438]
[1725557248857,40.22416454,130.65,130.59,15.8438]
[1725557249035,7.6555,130.63,130.59,23.5013]
[1725557249377,8.74436454,130.62,130.58,14.2945]
[1725557249544,7.6558,130.62,130.58,15.82584152]
[1725557249743,1.08856454,130.64,130.59,19.1437]
[1725557249940,8.74356454,130.64,130.6,9.18800374]
[1725557250141,20.0,130.63,130.6,9.18800374]
[1725557250562,20.0,130.63,130.61,7.6561]
[1725557250746,1.08856454,130.65,130.62,7.6557]
[1725557251065,12.24074724,130.66,130.63,1.53092399]
[1725557251256,12.24074724,130.66,130.62,9.18654634]
[1725557252060,20.0,130.65,130.62,9.18654634]
[1725557253161,27.6541,130.65,130.61,26.7967]
[1725557253361,1.08856454,130.64,130.58,25.7807]
[1725557253943,4.58724724,130.66,130.6,19.1417]
[1725557254159,28.74236454,130.66,130.62,7.6553]
[1725557254873,28.74236454,130.66,130.6,26.7981]
[1725557254874,7.6547,130.64,130.6,26.7981]
[1725557255165,21.08856454,130.66,130.59,7.6575]
[1725557255166,7.6556,130.63,130.59,7.6575]
[1725557255549,7.6556,130.63,130.59,26.8012]
[1725557256076,7.6548,130.64,130.6,7.6568]
[1725557257055,8.74376454,130.63,130.59,26.801]
[1725557257364,7.6552,130.63,130.59,26.801]
[1725557257857,7.6552,130.63,130.6,7.6569]
[1725557258278,7.6548,130.64,130.6,7.6569]
[1725557259187,7.6548,130.64,130.6,9.1880804]
[1725557260250,7.6548,130.64,130.6,7.6569]
[1725557260774,1.08856454,130.63,130.59,19.1437]
[1725557260953,7.656,130.62,130.59,19.1437]
[1725557262259,1.08856454,130.61,130.58,14.2944]
[1725557262782,1.08856454,130.61,130.58,15.82583334]
[1725557262960,7.656,130.62,130.58,15.82583334]
[1725557263574,1.08856454,130.61,130.58,15.82583334]
[1725557263976,1.08856454,130.61,130.57,19.1467]
[1725557264180,1.08856454,130.61,130.56,25.35061415]
[1725557264181,7.6571,130.6,130.56,25.35061415]
[1725557264589,20.0,130.59,130.56,25.35061415]
[1725557264946,27.6576,130.59,130.56,17.69141415]
[1725557265173,8.74676454,130.58,130.54,26.81]
[1725557265482,1.08856454,130.58,130.54,19.1497]
[1725557265860,7.6587,130.57,130.54,19.1497]
[1725557266054,7.6582,130.58,130.54,26.81]
[1725557266375,7.6577,130.59,130.55,1.53189215]
[1725557266571,7.6577,130.59,130.54,26.81]
[1725557266572,28.74706454,130.58,130.54,26.81]
[1725557266767,27.6585,130.58,130.54,28.34181408]
[1725557267077,27.6585,130.58,130.55,1.53176254]
[1725557267880,20.0,130.58,130.55,9.19156254]
[1725557272178,20.0,130.58,130.56,7.6592]
[1725557272362,20.0,130.59,130.56,7.6592]
[1725557272981,20.0,130.59,130.57,1.53158618]
[1725557273365,20.0,130.59,130.56,9.19076481]
[1725557274484,20.0,130.59,130.56,20.67956481]
[1725557274683,1.08856454,130.64,130.58,40.8135]
[1725557275062,1.08856454,130.64,130.58,48.4712]
[1725557275063,7.6557,130.63,130.58,48.4712]
[1725557275383,7.6558,130.62,130.59,7.6575]
[1725557275883,7.6554,130.63,130.59,7.6575]
[1725557276266,8.74436454,130.62,130.59,7.6575]
[1725557276471,7.6558,130.62,130.59,7.6575]
[1725557276785,7.6553,130.63,130.59,7.6575]
[1725557276990,20.0,130.62,130.6,20.67330452]
[1725557277280,8.74356454,130.64,130.6,26.7987]
[1725557277458,20.0,130.63,130.6,26.7987]
[1725557277859,27.6552,130.63,130.6,26.7987]
[1725557278078,8.74436454,130.62,130.58,21.6693]
[1725557278487,8.74436454,130.62,130.58,29.3272]
[1725557278685,7.6564,130.61,130.57,26.8043]
[1725557278865,1.08856454,130.6,130.57,26.8043]
[1725557280176,1.08856454,130.6,130.56,7.659]
[1725557280177,8.74566454,130.6,130.56,7.659]
[1725557280381,8.74616454,130.59,130.55,29.1473]
[1725557280577,21.08856454,130.58,130.53,7.661]
[1725557280785,1.08856454,130.57,130.53,9.19292663]
[1725557281378,1.08856454,130.59,130.53,9.19292663]
[1725557281691,46.08856454,130.59,130.53,9.19292663]
[1725557281987,20.0,130.58,130.53,9.19292663]
[1725557282163,1.08856454,130.57,130.53,9.19292663]
[1725557282368,8.74726454,130.57,130.53,9.19292663]
[1725557282568,20.0,130.56,130.53,7.661]
[1725557284485,20.0,130.56,130.53,9.1929265]
[1725557284893,20.0,130.56,130.53,7.661]
[1725557285196,20.0,130.56,130.53,9.19292716]
[1725557285968,20.0,130.56,130.53,7.661]
[1725557287486,20.0,130.56,130.53,9.19292925]
[1725557287994,20.0,130.56,130.53,7.661]
[1725557288196,27.6594,130.56,130.52,30.0252]
[1725557288398,1.08856454,130.55,130.52,30.0252]
[1725557288572,1.08856454,130.55,130.51,26.8163]
[1725557288773,7.6605,130.54,130.5,7.6626]
[1725557289079,28.75006454,130.53,130.49,26.8217]
[1725557289293,28.75006454,130.53,130.48,21.3759]
[1725557289294,8.75026454,130.52,130.48,7.6638]
[1725557289596,21.08856454,130.51,130.47,19.1614]
[1725557289797,1.08856454,130.51,130.47,19.1614]
[1725557290102,7.6626,130.51,130.47,26.8259]
[1725557292892,7.6634,130.49,130.45,29.4523]
[1725557293083,7.6634,130.49,130.45,7.6657]
[1725557293284,7.6634,130.49,130.44,19.1649]
[1725557293285,1.08856454,130.48,130.44,28.36396357]
[1725557297100,7.6634,130.49,130.44,28.36396357]
[1725557297482,7.6634,130.49,130.44,26.8311]
[1725557297692,8.75266454,130.48,130.44,26.8311]
[1725557297893,7.6641,130.48,130.44,26.8311]
[1725557299092,1.08856454,130.47,130.44,26.8311]
[1725557299425,7.6641,130.48,130.44,26.8311]
[1725557299896,1.08856454,130.47,130.44,26.8311]
[1725557300507,8.75326454,130.47,130.44,19.1649]
[1725557300715,8.75326454,130.47,130.42,24.0257]
[1725557300716,1.08856454,130.46,130.42,24.0257]
[1725557300898,1.08856454,130.46,130.42,7.6673]
[1725557301104,1.08856454,130.46,130.41,26.8368]
[1725557301315,1.08856454,130.46,130.41,19.1689]
[1725557301617,7.6665,130.44,130.4,7.6684]
[1725557301996,8.75446454,130.45,130.41,9.20163187]
[1725557302309,7.6659,130.45,130.41,7.6681]
[1725557302608,7.6658,130.45,130.42,7.6674]
[1725557302907,7.6658,130.45,130.41,26.8378]
[1725557305915,7.6658,130.45,130.42,7.6674]
[1725557306410,7.6658,130.45,130.41,26.838]
[1725557307218,8.75516454,130.44,130.41,19.1702]
[1725557307425,7.6666,130.44,130.41,19.1702]
[1725557307601,7.6666,130.44,130.41,20.70362974]
[1725557307800,7.6666,130.44,130.41,28.37162974]
[1725557309131,7.6661,130.45,130.41,28.37162974]
[1725557310427,7.6661,130.45,130.41,26.8382]
[1725557310725,7.6661,130.45,130.42,1.53340998]
[1725557311029,1.08856454,130.44,130.41,26.8382]
[1725557312323,8.75466454,130.45,130.42,7.6672]
[1725557313339,7.6661,130.45,130.42,7.6672]
[1725557313636,7.6661,130.45,130.41,26.8381]
[1725557314533,8.75516454,130.44,130.41,19.1702]
[1725557314726,7.6666,130.44,130.41,19.1702]
[1725557314926,7.6666,130.44,130.41,26.8382]
[1725557315134,7.6675,130.42,130.39,35.3137]
[1725557315309,7.6675,130.42,130.39,19.1732]
[1725557316010,7.6675,130.42,130.38,7.6696]
[1725557316210,1.08856454,130.45,130.37,26.8464]
[1725557316417,7.6677,130.42,130.38,7.6696]
[1725557316613,8.75706454,130.41,130.37,26.8464]
[1725557316918,7.6685,130.41,130.37,26.8464]
[1725557317335,1.08856454,130.4,130.34,19.1795]
[1725557317512,1.08856454,130.4,130.34,26.8516]
[1725557318028,1.08856454,130.39,130.34,26.8516]
[1725557318435,7.67,130.38,130.34,26.8516]
[1725557318734,7.67,130.38,130.34,28.38580549]
[1725557319110,28.75736454,130.4,130.36,7.6709]
[1725557319316,7.6702,130.38,130.34,19.1795]
[1725557319725,8.75796454,130.39,130.35,1.53420255]
[1725557319909,20.0,130.38,130.35,1.53420255]
[1725557321142,20.0,130.38,130.34,26.8516]
[1725557321442,20.0,130.38,130.35,7.6716]
[1725557322316,20.0,130.38,130.35,9.20567612]
[1725557322527,20.0,130.38,130.36,1.53404949]
[1725557322828,1.08856454,130.42,130.36,7.6708]
[1725557322829,21.08856454,130.42,130.36,7.6708]
[1725557323210,7.6691,130.4,130.36,7.6708]
[1725557323548,20.0,130.39,130.36,7.6708]
[1725557323702,21.08856454,130.39,130.35,7.6712]
[1725557323903,27.6694,130.39,130.35,7.6712]
[1725557324214,1.08856454,130.38,130.35,7.6712]
[1725557325115,27.6694,130.39,130.35,7.6712]
[1725557325631,1.08856454,130.38,130.35,7.6712]
[1725557325836,1.08856454,130.38,130.34,19.1795]
[1725557326142,1.08856454,130.38,130.35,7.6716]
[1725557327035,8.75846454,130.38,130.35,7.6716]
[1725557327246,7.6711,130.36,130.31,20.0427171]
[1725557327447,23.61412521,130.42,130.31,27.7161171]
[1725557327448,8.76026454,130.35,130.31,27.7161171]
[1725557327733,7.6712,130.36,130.31,20.0427171]
[1725557327920,1.08856454,130.38,130.31,20.0427171]
[1725557327921,8.75876454,130.38,130.33,19.1812]
[1725557328109,21.08856454,130.37,130.34,1.53429803]
[1725557328305,20.0,130.37,130.34,1.53429803]
[1725557328520,1.08856454,130.41,130.34,1.53429803]
[1725557328730,46.08856454,130.41,130.33,19.1812]
[1725557328914,7.672,130.35,130.31,8.5324171]
[1725557329242,7.6706,130.37,130.33,7.6727]
[1725557329543,20.0,130.36,130.34,1.53429926]
[1725557330112,20.0,130.36,130.33,7.6727]
[1725557330932,20.0,130.36,130.33,9.20692034]
[1725557331112,20.0,130.36,130.34,7.6722]
[1725557331313,20.0,130.36,130.33,7.6725]
[1725557331735,28.75956454,130.36,130.33,7.6725]
[1725557332034,27.671,130.36,130.33,7.6725]
[1725557332241,27.671,130.36,130.32,26.8564]
[1725557332426,7.6724,130.34,130.31,0.8589171]
[1725557334739,1.08856454,130.39,130.32,1.53464204]
[1725557334944,7.6703,130.38,130.33,7.6727]
[1725557335119,7.6703,130.38,130.34,1.53417171]
[1725557335438,8.75766454,130.4,130.36,7.6709]
[1725557335617,8.75766454,130.4,130.35,28.38388766]
[1725557335618,7.6691,130.4,130.35,28.38388766]
[1725557335816,7.6691,130.4,130.36,1.53394883]
[1725557336237,8.75786454,130.39,130.35,19.1786]
[1725557336417,7.6699,130.38,130.34,7.672]
[1725557337032,7.6699,130.38,130.33,9.2068094]
[1725557337330,1.08856454,130.37,130.33,9.20683914]
[1725557337530,8.75906454,130.37,130.33,7.6726]